[Event "17th Memorial Lezcano Montalvo 2025"]
[Site "Gran Canaria"]
[Date "2025.04.12"]
[Round "1.9"]
[White "Kovchan, Alexander"]
[Black "Sanchez Ramirez, Gustavo"]
[Result "1-0"]
[Annotator "RC"]
[ECO "C42"]
[WhiteElo "2433"]
[BlackElo "1780"]
[PlyCount "53"]
[EventDate "2025.04.13"]
[EventType "swiss"]
[EventCountry "ESP"]
[SourceTitle "playchess.com"]
[Source "ChessBase"]
[SourceQuality "1"]
[TimeControl "5400+30"]

1. e4 {[%emt 0:00:04]} e5 {[%emt 0:00:16]} 2. Nf3 {[%emt 0:00:08]} Nf6 {[%emt 0:00:35]} 3. Nxe5 {[%emt 0:00:31]} d6 {[%emt 0:01:54]} 4. Nf3 {[%emt 0:00:09]} Nxe4 {[%emt 0:00:09]} 5. d4 {[%emt 0:00:20]} Be7 {[%emt 0:02:01]} 6. d5 {[%emt 0:01:52]} O-O {[%emt 0:00:45]} 7. Be2 {[%emt 0:00:12]} Bf5 {[%emt 0:01:48]} 8. O-O {[%emt 0:02:06]} Nd7 {[%emt 0:00:23]} 9. Nd4 {[%emt 0:01:31]} Bg6 {[%emt 0:00:45]} 10. f4 {[%emt 0:01:13]} h6 {[%emt 0:01:49]} 11. Bf3 {[%emt 0:00:33]} Nef6 {[%emt 0:04:40]} 12. Nc3 {[%emt 0:00:45]} Re8 {[%emt 0:00:46]} 13. g4 {[%emt 0:03:45]} Bf8 {[%emt 0:00:51]} 14. f5 {[%emt 0:01:22]} Bh7 {[%emt 0:00:49]} 15. h4 {[%emt 0:00:45]} Nxg4 {[%emt 0:12:25]} 16. Bxg4 {[%emt 0:00:47]} Qxh4 {[%emt 0:00:06]} 17. Kg2 {[%emt 0:01:10]} Ne5 {[%emt 0:01:51]} 18. Bh3 {[%emt 0:02:15]} Qd8 {[%emt 0:11:51]} 19. Bf4 {[%emt 0:02:22]} Be7 {[%emt 0:01:05]} 20. Bxe5 {[%emt 0:05:21]} dxe5 {[%emt 0:00:11]} 21. Nf3 {[%emt 0:00:26]} f6 {[%emt 0:08:17]} 22. Ne4 {[%emt 0:02:07]} a5 {[%emt 0:04:32]} 23. c4 {[%emt 0:00:36]} b6 {[%emt 0:01:05]} 24. Nh4 {[%emt 0:06:46]} Bf8 {[%emt 0:01:24]} 25. Kh2 {[%emt 0:04:57]} Be7 {[%emt 0:00:34]} 26. Rg1 {[%emt 0:01:44]} Bf8 {[%emt 0:02:56]} 27. Qh5 {[%emt 0:04:40]} 1-0

[Event "17th Memorial Lezcano Montalvo 2025"]
[Site "Gran Canaria"]
[Date "2025.04.12"]
[Round "1.10"]
[White "Velasquez Vargas, Sebastian"]
[Black "Fiorito, Francisco"]
[Result "0-1"]
[Annotator "RC"]
[ECO "E14"]
[WhiteElo "1777"]
[BlackElo "2431"]
[PlyCount "62"]
[EventDate "2025.04.13"]
[EventType "swiss"]
[EventCountry "ESP"]
[SourceTitle "playchess.com"]
[Source "ChessBase"]
[SourceQuality "1"]
[TimeControl "5400+30"]

1. d4 {[%emt 0:00:09]} Nf6 {[%emt 0:00:07]} 2. Nf3 {[%emt 0:00:08]} b6 {[%emt 0:00:05]} 3. c4 {[%emt 0:00:13]} Bb7 {[%emt 0:00:02]} 4. e3 {[%emt 0:00:28]} e6 {[%emt 0:00:07]} 5. Nc3 {[%emt 0:00:13]} Be7 {[%emt 0:00:27]} 6. Bd3 {[%emt 0:00:17]} c5 {[%emt 0:00:42]} 7. O-O {[%emt 0:00:47]} cxd4 {[%emt 0:01:03]} 8. exd4 {[%emt 0:00:09]} d5 {[%emt 0:01:07]} 9. cxd5 {[%emt 0:00:33]} Nxd5 {[%emt 0:00:43]} 10. Nxd5 {[%emt 0:00:42]} Bxd5 {[%emt 0:02:10]} 11. Bf4 {[%emt 0:00:29]} O-O {[%emt 0:00:52]} 12. Qe2 {[%emt 0:01:03]} Nc6 {[%emt 0:00:35]} 13. Be4 {[%emt 0:00:55]} Rc8 {[%emt 0:01:21]} 14. Rfd1 {[%emt 0:01:52]} Bxe4 {[%emt 0:02:09]} 15. Qxe4 {[%emt 0:00:12]} Nb4 {[%emt 0:00:59]} 16. a3 {[%emt 0:04:35]} Nd5 {[%emt 0:01:06]} 17. Rac1 {[%emt 0:00:28]} Qd7 {[%emt 0:01:47]} 18. Ne5 {[%emt 0:01:02]} Qb5 {[%emt 0:00:27]} 19. b4 {[%emt 0:01:28]} Nc3 {[%emt 0:01:03]} 20. Rxc3 {[%emt 0:03:50]} Rxc3 {[%emt 0:00:03]} 21. Qb7 {[%emt 0:00:23]} Bd6 {[%emt 0:01:31]} 22. Qxa7 {[%emt 0:04:11]} Rc7 {[%emt 0:00:45]} 23. Qxc7 {[%emt 0:06:05]} Bxc7 {[%emt 0:00:01]} 24. Rc1 {[%emt 0:00:25]} Bxe5 {[%emt 0:00:06]} 25. Bxe5 {[%emt 0:00:13]} Qd3 {[%emt 0:00:02]} 26. h3 {[%emt 0:00:08]} Qxa3 {[%emt 0:00:05]} 27. Rc4 {[%emt 0:00:23]} Qb3 {[%emt 0:00:07]} 28. Rc6 {[%emt 0:00:19]} Qxb4 {[%emt 0:00:02]} 29. Kh2 {[%emt 0:00:28]} Rd8 {[%emt 0:00:23]} 30. Bc7 {[%emt 0:00:37]} Qxd4 {[%emt 0:00:59]} 31. Bxd8 {[%emt 0:00:23]} Qxd8 {[%emt 0:00:03]} 0-1

[Event "17th Memorial Lezcano Montalvo 2025"]
[Site "Gran Canaria"]
[Date "2025.04.12"]
[Round "1.11"]
[White "Yelisieiev, Yevhenii"]
[Black "Rossello Padron, Carlos"]
[Result "1-0"]
[Annotator "RC"]
[ECO "D02"]
[WhiteElo "2413"]
[BlackElo "1776"]
[PlyCount "59"]
[EventDate "2025.04.13"]
[EventType "swiss"]
[EventCountry "ESP"]
[SourceTitle "playchess.com"]
[Source "ChessBase"]
[SourceQuality "1"]
[TimeControl "5400+30"]

1. d4 {[%emt 0:00:07]} Nf6 {[%emt 0:00:12]} 2. Nf3 {[%emt 0:00:07]} g6 {[%emt 0:00:34]} 3. g3 {[%emt 0:00:05]} Bg7 {[%emt 0:00:42]} 4. Bg2 {[%emt 0:00:07]} d5 {[%emt 0:00:31]} 5. O-O {[%emt 0:00:09]} O-O {[%emt 0:00:08]} 6. c3 {[%emt 0:00:08]} Nbd7 {[%emt 0:01:27]} 7. Bf4 {[%emt 0:03:14]} c6 {[%emt 0:01:45]} 8. Nbd2 {[%emt 0:04:41]} Nh5 {[%emt 0:02:48]} 9. Be3 {[%emt 0:03:45]} e5 {[%emt 0:04:37]} 10. dxe5 {[%emt 0:02:24]} Nxe5 {[%emt 0:00:26]} 11. Nxe5 {[%emt 0:06:37]} Bxe5 {[%emt 0:00:24]} 12. Bc5 {[%emt 0:01:37]} Re8 {[%emt 0:01:21]} 13. e4 {[%emt 0:00:54]} b6 {[%emt 0:04:14]} 14. Ba3 {[%emt 0:04:29]} d4 {[%emt 0:00:40]} 15. Nc4 {[%emt 0:06:47]} Ba6 {[%emt 0:01:00]} 16. Nxe5 {[%emt 0:00:10]} Bxf1 {[%emt 0:05:14]} 17. Nxc6 {[%emt 0:01:48]} Qc7 {[%emt 0:04:42]} 18. Qxf1 {[%emt 0:00:28]} Qxc6 {[%emt 0:01:12]} 19. e5 {[%emt 0:00:21]} Qd7 {[%emt 0:00:37]} 20. Bxa8 {[%emt 0:00:24]} Rxa8 {[%emt 0:00:13]} 21. Rd1 {[%emt 0:01:42]} Qe6 {[%emt 0:00:52]} 22. cxd4 {[%emt 0:05:13]} Rd8 {[%emt 0:01:15]} 23. Qd3 {[%emt 0:04:04]} Ng7 {[%emt 0:00:55]} 24. Qe4 {[%emt 0:01:43]} f6 {[%emt 0:01:47]} 25. Re1 {[%emt 0:05:46]} Nf5 {[%emt 0:01:32]} 26. exf6 {[%emt 0:01:12]} Qxf6 {[%emt 0:02:12]} 27. d5 {[%emt 0:00:43]} Nd4 {[%emt 0:01:09]} 28. Kg2 {[%emt 0:03:49]} Rc8 {[%emt 0:03:27]} 29. Be7 {[%emt 0:00:08]} Qg7 {[%emt 0:00:58]} 30. d6 {[%emt 0:00:10]} 1-0

[Event "17th Memorial Lezcano Montalvo 2025"]
[Site "Gran Canaria"]
[Date "2025.04.12"]
[Round "1.12"]
[White "Cappelle, Cedric"]
[Black "Ambartsumova, Karina"]
[Result "0-1"]
[Annotator "RC"]
[ECO "A53"]
[WhiteElo "1774"]
[BlackElo "2405"]
[PlyCount "60"]
[EventDate "2025.04.13"]
[EventType "swiss"]
[EventCountry "ESP"]
[SourceTitle "playchess.com"]
[Source "ChessBase"]
[SourceQuality "1"]
[TimeControl "5400+30"]

1. d4 {[%emt 0:00:04]} Nf6 {[%emt 0:00:34]} 2. c4 {[%emt 0:00:06]} d6 {[%emt 0:01:29]} 3. Nc3 {[%emt 0:00:11]} Bf5 {[%emt 0:02:05]} 4. f3 {[%emt 0:02:08]} e5 {[%emt 0:04:16]} 5. dxe5 {[%emt 0:06:08]} dxe5 {[%emt 0:00:19]} 6. Qxd8+ {[%emt 0:00:08]} Kxd8 {[%emt 0:00:04]} 7. e4 {[%emt 0:00:19]} Be6 {[%emt 0:02:10]} 8. Bg5 {[%emt 0:02:48]} c6 {[%emt 0:01:17]} 9. Nh3 {[%emt 0:02:22]} h6 {[%emt 0:05:45]} 10. Bh4 {[%emt 0:00:42]} Nbd7 {[%emt 0:01:16]} 11. Nf2 {[%emt 0:06:26]} g5 {[%emt 0:10:48]} 12. Bg3 {[%emt 0:00:09]} Nh5 {[%emt 0:00:15]} 13. Nfd1 {[%emt 0:02:19]} Nxg3 {[%emt 0:08:56]} 14. hxg3 {[%emt 0:00:06]} Bc5 {[%emt 0:00:11]} 15. Bd3 {[%emt 0:07:28]} a5 {[%emt 0:07:40]} 16. Ke2 {[%emt 0:01:28]} Nb6 {[%emt 0:08:29]} 17. b3 {[%emt 0:14:42]} a4 {[%emt 0:02:00]} 18. Ne3 {[%emt 0:00:35]} Kc7 {[%emt 0:06:00]} 19. Nf5 {[%emt 0:14:32]} Rhd8 {[%emt 0:04:03]} 20. Bc2 {[%emt 0:17:54]} Bb4 {[%emt 0:06:14]} 21. Nb1 {[%emt 0:01:53]} axb3 {[%emt 0:00:50]} 22. Bxb3 {[%emt 0:00:30]} Bxc4+ {[%emt 0:08:28]} 23. Bxc4 {[%emt 0:00:26]} Nxc4 {[%emt 0:00:05]} 24. Rd1 {[%emt 0:05:06]} h5 {[%emt 0:05:09]} 25. Rd3 {[%emt 0:01:26]} b5 {[%emt 0:00:40]} 26. Ne3 {[%emt 0:04:14]} Rxd3 {[%emt 0:00:35]} 27. Kxd3 {[%emt 0:00:27]} Nxe3 {[%emt 0:00:07]} 28. Kxe3 {[%emt 0:00:08]} Bc5+ {[%emt 0:00:04]} 29. Kd3 {[%emt 0:00:50]} Bd4 {[%emt 0:00:06]} 30. Nc3 {[%emt 0:01:04]} Ra3 {[%emt 0:15:35]} 0-1

[Event "17th Memorial Lezcano Montalvo 2025"]
[Site "Gran Canaria"]
[Date "2025.04.12"]
[Round "1.13"]
[White "Fiorito, Joaquin"]
[Black "Guerra Aleman, Marcial"]
[Result "1-0"]
[Annotator "RC"]
[ECO "E08"]
[WhiteElo "2402"]
[BlackElo "1766"]
[PlyCount "47"]
[EventDate "2025.04.13"]
[EventType "swiss"]
[EventCountry "ESP"]
[SourceTitle "playchess.com"]
[Source "ChessBase"]
[SourceQuality "1"]
[TimeControl "5400+30"]

1. d4 {[%emt 1:31:00]} d5 {[%emt 0:00:35]} 2. Nf3 {[%emt 0:00:00]} e6 {[%emt 0:00:26]} 3. c4 {[%emt 0:00:00]} Be7 {[%emt 0:01:29]} 4. g3 {[%emt 0:00:00]} Nf6 {[%emt 0:01:16]} 5. Bg2 {[%emt 0:00:00]} O-O {[%emt 0:00:09]} 6. O-O {[%emt 0:00:00]} c6 {[%emt 0:03:16]} 7. Qc2 {[%emt 0:00:00]} b6 {[%emt 0:01:13]} 8. Rd1 {[%emt 0:00:00]} Bb7 {[%emt 0:01:11]} 9. b3 {[%emt 0:00:00]} Nbd7 {[%emt 0:00:40]} 10. Nc3 {[%emt 0:00:00]} Rc8 {[%emt 0:00:48]} 11. e4 {[%emt 0:00:00]} dxe4 {[%emt 0:01:33]} 12. Ng5 {[%emt 0:00:00]} h6 {[%emt 0:06:17]} 13. Ngxe4 {[%emt 0:00:00]} Nxe4 {[%emt 0:00:13]} 14. Nxe4 {[%emt 0:00:00]} Nf6 {[%emt 0:00:25]} 15. Bf4 {[%emt 0:00:00]} Nxe4 {[%emt 0:07:35]} 16. Bxe4 {[%emt 0:00:00]} Bg5 {[%emt 0:01:51]} 17. Bxg5 {[%emt 0:00:00]} Qxg5 {[%emt 0:00:28]} 18. c5 {[%emt 0:00:00]} Rfd8 {[%emt 0:03:40]} 19. a4 {[%emt 0:00:00]} Qf6 {[%emt 0:04:00]} 20. a5 {[%emt 0:00:00]} bxa5 {[%emt 0:09:50]} 21. Rxa5 {[%emt 0:00:00]} Rxd4 {[%emt 0:00:09]} 22. Rxa7 {[%emt 0:00:00]} Rxd1+ {[%emt 0:06:53]} 23. Qxd1 {[%emt 0:00:00]} Ra8 {[%emt 0:00:11]} 24. Rxb7 {[%emt 0:11:30]} 1-0

[Event "17th Memorial Lezcano Montalvo 2025"]
[Site "Gran Canaria"]
[Date "2025.04.12"]
[Round "1.14"]
[White "Julien Casteleiro, Ariel"]
[Black "Gomez Ledo, Roberto Carlos"]
[Result "0-1"]
[Annotator "RC"]
[ECO "A41"]
[WhiteElo "1761"]
[BlackElo "2396"]
[PlyCount "56"]
[EventDate "2025.04.13"]
[EventType "swiss"]
[EventCountry "ESP"]
[SourceTitle "playchess.com"]
[Source "ChessBase"]
[SourceQuality "1"]
[TimeControl "5400+30"]

1. d4 {[%emt 0:00:03]} g6 {[%emt 0:00:38]} 2. Bf4 {[%emt 0:00:41]} Bg7 {[%emt 0:00:25]} 3. Nf3 {[%emt 0:00:14]} d6 {[%emt 0:00:56]} 4. h3 {[%emt 0:01:21]} Nd7 {[%emt 0:06:27]} 5. c4 {[%emt 0:01:08]} e5 {[%emt 0:03:04]} 6. Bh2 {[%emt 0:03:04]} e4 {[%emt 0:07:30]} 7. Ng1 {[%emt 0:01:38]} f5 {[%emt 0:05:10]} 8. e3 {[%emt 0:00:54]} Ne7 {[%emt 0:00:23]} 9. Nc3 {[%emt 0:00:32]} O-O {[%emt 0:00:22]} 10. Qb3 {[%emt 0:00:55]} Kh8 {[%emt 0:00:55]} 11. Nge2 {[%emt 0:00:49]} Nf6 {[%emt 0:02:19]} 12. Nf4 {[%emt 0:00:43]} g5 {[%emt 0:04:09]} 13. Nfe2 {[%emt 0:00:08]} Ng6 {[%emt 0:00:50]} 14. O-O-O {[%emt 0:03:13]} Qe7 {[%emt 0:04:28]} 15. Kb1 {[%emt 0:02:22]} a6 {[%emt 0:00:50]} 16. d5 {[%emt 0:02:34]} Nd7 {[%emt 0:00:58]} 17. Nd4 {[%emt 0:00:44]} Nc5 {[%emt 0:03:12]} 18. Qc2 {[%emt 0:00:30]} Ne5 {[%emt 0:01:37]} 19. Be2 {[%emt 0:02:24]} Bd7 {[%emt 0:10:33]} 20. g4 {[%emt 0:05:11]} Ned3 {[%emt 0:09:44]} 21. Bxd3 {[%emt 0:02:21]} exd3 {[%emt 0:00:41]} 22. Rxd3 {[%emt 0:00:57]} Nxd3 {[%emt 0:00:13]} 23. Qxd3 {[%emt 0:00:11]} Bxd4 {[%emt 0:00:45]} 24. Qxd4+ {[%emt 0:04:04]} Qg7 {[%emt 0:00:10]} 25. f3 {[%emt 0:02:36]} fxg4 {[%emt 0:02:49]} 26. fxg4 {[%emt 0:02:58]} Rf3 {[%emt 0:01:18]} 27. Ne4 {[%emt 0:03:38]} Re8 {[%emt 0:02:02]} 28. Nxg5 {[%emt 0:05:56]} Rfxe3 {[%emt 0:01:15]} 0-1

[Event "17th Memorial Lezcano Montalvo 2025"]
[Site "Gran Canaria"]
[Date "2025.04.12"]
[Round "1.15"]
[White "Akhvlediani, Irakli"]
[Black "Grube, Kurt"]
[Result "1-0"]
[Annotator "RC"]
[ECO "E93"]
[WhiteElo "2387"]
[BlackElo "1732"]
[PlyCount "79"]
[EventDate "2025.04.13"]
[EventType "swiss"]
[EventCountry "ESP"]
[SourceTitle "playchess.com"]
[Source "ChessBase"]
[SourceQuality "1"]
[TimeControl "5400+30"]

1. d4 {[%emt 0:00:05]} Nf6 {[%emt 0:00:06]} 2. c4 {[%emt 0:00:03]} g6 {[%emt 0:00:04]} 3. Nc3 {[%emt 0:00:02]} Bg7 {[%emt 0:00:07]} 4. e4 {[%emt 0:00:04]} d6 {[%emt 0:00:17]} 5. Be2 {[%emt 0:00:07]} O-O {[%emt 0:00:14]} 6. Be3 {[%emt 0:00:03]} e5 {[%emt 0:01:07]} 7. d5 {[%emt 0:00:04]} Nbd7 {[%emt 0:00:40]} 8. Nf3 {[%emt 0:00:13]} h6 {[%emt 0:01:08]} 9. Nd2 {[%emt 0:00:05]} b6 {[%emt 0:01:18]} 10. g4 {[%emt 0:00:04]} Nh7 {[%emt 0:01:14]} 11. h4 {[%emt 0:00:04]} Re8 {[%emt 0:03:29]} 12. h5 {[%emt 0:00:12]} g5 {[%emt 0:00:30]} 13. Nf1 {[%emt 0:00:04]} Nc5 {[%emt 0:01:48]} 14. b4 {[%emt 0:00:30]} Nb7 {[%emt 0:00:45]} 15. Ng3 {[%emt 0:00:05]} a5 {[%emt 0:01:04]} 16. a3 {[%emt 0:00:01]} Qe7 {[%emt 0:01:13]} 17. f3 {[%emt 0:01:18]} Nd8 {[%emt 0:06:04]} 18. Kf2 {[%emt 0:01:00]} Qf6 {[%emt 0:01:25]} 19. Kg2 {[%emt 0:00:14]} Bb7 {[%emt 0:04:57]} 20. Qd2 {[%emt 0:01:11]} axb4 {[%emt 0:02:55]} 21. axb4 {[%emt 0:00:04]} Rxa1 {[%emt 0:02:29]} 22. Rxa1 {[%emt 0:00:04]} Qe7 {[%emt 0:01:53]} 23. Nf5 {[%emt 0:00:25]} Qd7 {[%emt 0:00:21]} 24. c5 {[%emt 0:01:12]} bxc5 {[%emt 0:02:19]} 25. bxc5 {[%emt 0:00:02]} dxc5 {[%emt 0:01:25]} 26. Na4 {[%emt 0:02:35]} Bf8 {[%emt 0:04:36]} 27. Nxc5 {[%emt 0:00:12]} Bxc5 {[%emt 0:02:17]} 28. Bxc5 {[%emt 0:01:10]} Ne6 {[%emt 0:03:30]} 29. Be3 {[%emt 0:01:51]} Nf4+ {[%emt 0:01:42]} 30. Bxf4 {[%emt 0:00:04]} gxf4 {[%emt 0:00:48]} 31. Qb4 {[%emt 0:00:45]} Ba8 {[%emt 0:12:05]} 32. Ra7 {[%emt 0:03:31]} Qd8 {[%emt 0:03:19]} 33. Nxh6+ {[%emt 0:02:57]} Kg7 {[%emt 0:00:17]} 34. Nf5+ {[%emt 0:00:03]} Kg8 {[%emt 0:00:45]} 35. d6 {[%emt 0:01:12]} cxd6 {[%emt 0:01:54]} 36. Nh6+ {[%emt 0:01:50]} Kg7 {[%emt 0:01:28]} 37. Nxf7 {[%emt 0:00:04]} Qb8 {[%emt 0:00:51]} 38. Qa3 {[%emt 0:00:07]} Rc8 {[%emt 0:04:51]} 39. Nxd6+ {[%emt 0:00:07]} Rc7 {[%emt 0:00:19]} 40. Rxc7+ {[%emt 0:00:04]} 1-0

[Event "17th Memorial Lezcano Montalvo 2025"]
[Site "Gran Canaria"]
[Date "2025.04.12"]
[Round "1.16"]
[White "Matos Espino, Carlos Silverio"]
[Black "Barski, Radoslaw"]
[Result "0-1"]
[Annotator "RC"]
[ECO "B44"]
[WhiteElo "1731"]
[BlackElo "2385"]
[PlyCount "42"]
[EventDate "2025.04.13"]
[EventType "swiss"]
[EventCountry "ESP"]
[SourceTitle "playchess.com"]
[Source "ChessBase"]
[SourceQuality "1"]
[TimeControl "5400+30"]

1. e4 {[%emt 0:00:03]} c5 {[%emt 0:00:24]} 2. Nf3 {[%emt 0:00:10]} Nc6 {[%emt 0:00:40]} 3. d4 {[%emt 0:00:08]} cxd4 {[%emt 0:00:05]} 4. Nxd4 {[%emt 0:00:04]} e6 {[%emt 0:00:22]} 5. c4 {[%emt 0:00:33]} Nf6 {[%emt 0:00:56]} 6. Nc3 {[%emt 0:00:50]} Bb4 {[%emt 0:00:50]} 7. f3 {[%emt 0:03:17]} d5 {[%emt 0:05:00]} 8. cxd5 {[%emt 0:03:01]} exd5 {[%emt 0:02:21]} 9. Bb5 {[%emt 0:02:55]} O-O {[%emt 0:09:20]} 10. Bxc6 {[%emt 0:09:45]} bxc6 {[%emt 0:04:42]} 11. Nxc6 {[%emt 0:05:11]} Bxc3+ {[%emt 0:00:11]} 12. bxc3 {[%emt 0:00:06]} Qc7 {[%emt 0:00:43]} 13. exd5 {[%emt 0:00:45]} Re8+ {[%emt 0:01:58]} 14. Kf2 {[%emt 0:00:04]} Ba6 {[%emt 0:01:50]} 15. Be3 {[%emt 0:01:03]} Rxe3 {[%emt 0:08:02]} 16. Kxe3 {[%emt 0:00:19]} Re8+ {[%emt 0:00:04]} 17. Kf2 {[%emt 0:00:48]} Qf4 {[%emt 0:00:06]} 18. Qd4 {[%emt 0:09:55]} Re4 {[%emt 0:00:24]} 19. Qxa7 {[%emt 0:06:42]} Qd2+ {[%emt 0:00:10]} 20. Kg3 {[%emt 0:00:18]} Qg5+ {[%emt 0:00:14]} 21. Kf2 {[%emt 0:00:11]} Re2+ {[%emt 0:00:06]} 0-1

[Event "17th Memorial Lezcano Montalvo 2025"]
[Site "Gran Canaria"]
[Date "2025.04.12"]
[Round "1.17"]
[White "Narciso Dublan, Marc"]
[Black "Creo Abeijon, Diego"]
[Result "1-0"]
[Annotator "RC"]
[ECO "A45"]
[WhiteElo "2376"]
[BlackElo "1729"]
[PlyCount "65"]
[EventDate "2025.04.13"]
[EventType "swiss"]
[EventCountry "ESP"]
[SourceTitle "playchess.com"]
[Source "ChessBase"]
[SourceQuality "1"]
[TimeControl "5400+30"]

1. d4 {[%emt 0:00:23]} Nf6 {[%emt 0:00:18]} 2. Bg5 {[%emt 0:00:21]} Ne4 {[%emt 0:00:19]} 3. Bf4 {[%emt 0:00:15]} g5 {[%emt 0:01:01]} 4. Bc1 {[%emt 0:00:36]} h6 {[%emt 0:03:41]} 5. f3 {[%emt 0:01:05]} Nf6 {[%emt 0:01:07]} 6. e4 {[%emt 0:00:11]} d5 {[%emt 0:02:09]} 7. e5 {[%emt 0:01:16]} Nh5 {[%emt 0:00:41]} 8. Be3 {[%emt 0:12:53]} f5 {[%emt 0:07:46]} 9. c4 {[%emt 0:02:12]} f4 {[%emt 0:03:54]} 10. Bf2 {[%emt 0:08:02]} Ng7 {[%emt 0:06:29]} 11. cxd5 {[%emt 0:02:58]} Qxd5 {[%emt 0:00:46]} 12. Nc3 {[%emt 0:00:12]} Qa5 {[%emt 0:01:54]} 13. h4 {[%emt 0:03:22]} Nf5 {[%emt 0:08:53]} 14. hxg5 {[%emt 0:01:02]} Ng3 {[%emt 0:01:06]} 15. Bxg3 {[%emt 0:00:34]} fxg3 {[%emt 0:00:06]} 16. Qc2 {[%emt 0:03:08]} Be6 {[%emt 0:02:35]} 17. Bb5+ {[%emt 0:13:41]} c6 {[%emt 0:04:39]} 18. Ba4 {[%emt 0:01:28]} Na6 {[%emt 0:01:56]} 19. a3 {[%emt 0:00:54]} O-O-O {[%emt 0:04:22]} 20. O-O-O {[%emt 0:03:05]} Nc7 {[%emt 0:06:14]} 21. Nge2 {[%emt 0:01:22]} Nd5 {[%emt 0:03:32]} 22. Bb3 {[%emt 0:01:46]} Kb8 {[%emt 0:01:53]} 23. Bxd5 {[%emt 0:01:18]} Bxd5 {[%emt 0:02:08]} 24. Nf4 {[%emt 0:04:04]} e6 {[%emt 0:09:54]} 25. Ng6 {[%emt 0:01:54]} Rg8 {[%emt 0:03:09]} 26. Nxf8 {[%emt 0:02:23]} Rdxf8 {[%emt 0:01:01]} 27. gxh6 {[%emt 0:00:16]} Rxf3 {[%emt 0:01:46]} 28. gxf3 {[%emt 0:01:50]} Bxf3 {[%emt 0:02:29]} 29. h7 {[%emt 0:00:13]} Rh8 {[%emt 0:00:32]} 30. Qg6 {[%emt 0:01:44]} Qd8 {[%emt 0:00:12]} 31. Qf6 {[%emt 0:07:54]} Bxh1 {[%emt 0:02:48]} 32. Qxd8+ {[%emt 0:00:35]} Rxd8 {[%emt 0:00:08]} 33. Rxh1 {[%emt 0:24:03]} 1-0

[Event "17th Memorial Lezcano Montalvo 2025"]
[Site "Gran Canaria"]
[Date "2025.04.12"]
[Round "1.18"]
[White "Vega Garcia, Jesus Manuel"]
[Black "Strikovic, Aleksa"]
[Result "0-1"]
[Annotator "RC"]
[ECO "A41"]
[WhiteElo "1725"]
[BlackElo "2367"]
[PlyCount "66"]
[EventDate "2025.04.13"]
[EventType "swiss"]
[EventCountry "ESP"]
[SourceTitle "playchess.com"]
[Source "ChessBase"]
[SourceQuality "1"]
[TimeControl "5400+30"]

1. d4 {[%emt 0:00:04]} d6 {[%emt 0:00:10]} 2. c4 {[%emt 0:00:21]} e5 {[%emt 0:00:06]} 3. dxe5 {[%emt 0:02:56]} dxe5 {[%emt 0:00:08]} 4. Qxd8+ {[%emt 0:00:35]} Kxd8 {[%emt 0:00:05]} 5. Nc3 {[%emt 0:01:07]} Be6 {[%emt 0:00:11]} 6. b3 {[%emt 0:01:25]} Nd7 {[%emt 0:00:19]} 7. Nf3 {[%emt 0:04:17]} f6 {[%emt 0:01:37]} 8. g3 {[%emt 0:00:43]} c6 {[%emt 0:00:11]} 9. Bg2 {[%emt 0:02:01]} Kc7 {[%emt 0:01:24]} 10. Bb2 {[%emt 0:01:39]} Nc5 {[%emt 0:00:12]} 11. Nd2 {[%emt 0:02:10]} Nh6 {[%emt 0:01:24]} 12. O-O {[%emt 0:08:27]} Nf7 {[%emt 0:00:35]} 13. Rfd1 {[%emt 0:03:09]} a5 {[%emt 0:01:15]} 14. Nde4 {[%emt 0:04:00]} Nd7 {[%emt 0:00:21]} 15. Bc1 {[%emt 0:05:30]} Be7 {[%emt 0:01:39]} 16. h4 {[%emt 0:02:31]} h6 {[%emt 0:00:30]} 17. Be3 {[%emt 0:01:55]} f5 {[%emt 0:00:39]} 18. Nd2 {[%emt 0:02:21]} Bc5 {[%emt 0:06:16]} 19. Nf1 {[%emt 0:01:31]} Bxe3 {[%emt 0:01:03]} 20. Nxe3 {[%emt 0:00:33]} Nc5 {[%emt 0:00:05]} 21. Bh3 {[%emt 0:01:25]} g6 {[%emt 0:00:25]} 22. Kg2 {[%emt 0:02:40]} Nd6 {[%emt 0:04:23]} 23. Rd2 {[%emt 0:03:30]} h5 {[%emt 0:02:58]} 24. Rad1 {[%emt 0:02:10]} Rhd8 {[%emt 0:00:45]} 25. Nc2 {[%emt 0:14:58]} Rd7 {[%emt 0:01:51]} 26. Ne1 {[%emt 0:00:39]} a4 {[%emt 0:01:57]} 27. Nd3 {[%emt 0:04:13]} Nxd3 {[%emt 0:08:36]} 28. Rxd3 {[%emt 0:03:16]} axb3 {[%emt 0:00:13]} 29. axb3 {[%emt 0:00:11]} e4 {[%emt 0:02:09]} 30. R3d2 {[%emt 0:01:19]} Ra3 {[%emt 0:00:07]} 31. Na4 {[%emt 0:00:48]} Nxc4 {[%emt 0:03:19]} 32. Rxd7+ {[%emt 0:00:25]} Bxd7 {[%emt 0:00:04]} 33. Nc5 {[%emt 0:00:33]} Ne5 {[%emt 0:00:24]} 0-1